Cogmind - Beta 13 @@@ ROGUE MODE // 2024.07.05 @ 14:17:05 Player: Juicifer Result: Destroyed by S1-U6Y(R) with Subdweller Machine Gun Performance ------------- Evolutions (0) 0 Regions Visited (3) 600 Robots Destroyed (23) 115 Value Destroyed (577) 577 Prototype IDs (2) 40 Alien Tech Used (0) 0 Bonus (0) 0 TOTAL SCORE: 1332 Bonus ------- None Cogmind --------- Core Integrity 0/250 Matter 161/300 Energy 195/200 System Corruption 0% Temperature Cool (0) Movement Walking (120) Location -10/Subcaves Parts ------- > --- POWER (1) -------- Subdweller Power Source > --- PROPULSION (2) --- Myomer Leg > --- UTILITY (2) ------ Medium Storage Unit Signal Interpreter > --- WEAPON (2) ------- Light Assault Rifle > --- INVENTORY (10) --- Improved Aluminum Leg Improved Aluminum Leg High-capacity Matter Pod (200) Scrap Shield Authchip [R/Combat] Datajack Peak State ------------ > --- POWER ------------ Subdweller Power Source > --- PROPULSION ------- Improved Aluminum Leg Myomer Leg > --- UTILITY ---------- Medium Storage Unit Signal Interpreter > --- WEAPON ----------- Beamcaster Autogun > --- INVENTORY -------- Improved Aluminum Leg Improved Aluminum Leg High-capacity Matter Pod Scrap Shield Authchip [R/Combat] Light Assault Rifle Datajack [Rating: 21] Favorites ----------- Power Improved Ion Engine Engine Improved Ion Engine Propulsion Improved Aluminum Leg Leg Improved Aluminum Leg Utility Signal Interpreter Storage Medium Storage Unit Processor Signal Interpreter Weapon Grenade Launcher Energy Gun Medium Laser Ballistic Gun Autogun Launcher Grenade Launcher Build | -11 -10 -10 -10 ------- Run | Yrd Mat Min Sub Slots Evolved . | . . . . Power . | . . . . Propulsion . | . . . . Utility . | . . . . Weapon . | . . . . Parts Attached 24 | 7 10 1 6 Power 5 | 2 1 . 2 Engine 5 | 2 1 . 2 Core . | . . . . Reactor . | . . . . Propulsion 5 | 2 2 . 1 Treads . | . . . . Leg 5 | 2 2 . 1 Wheel . | . . . . Hover . | . . . . Flight . | . . . . Utility 3 | 1 2 . . Device . | . . . . Storage 2 | 1 1 . . Processor 1 | . 1 . . Hackware . | . . . . Protection . | . . . . Artifact . | . . . . Weapon 11 | 2 5 1 3 Energy Gun 5 | 1 2 . 2 Energy Cannon . | . . . . Ballistic Gun 5 | 1 2 1 1 Ballistic Cannon . | . . . . Launcher 1 | . 1 . . Special Weapon . | . . . . Impact Weapon . | . . . . Slashing Weapon . | . . . . Piercing Weapon . | . . . . Special Melee Weapon . | . . . . Unidentified Prototypes . | . . . . Parts Lost 8 | . 2 . 6 Power 2 | . . . 2 Propulsion 1 | . . . 1 Utility . | . . . . Weapon 5 | . 2 . 3 Highest Loss Streak 3 | . 2 . 3 To Critical Strikes . | . . . . Average Slot Usage (%) 96 | . 93 100 95 Engine 13 | . 14 14 12 Leg 27 | . 28 28 27 Storage 14 | . 14 14 14 Processor 11 | . 8 14 14 Energy Gun 7 | . 12 . 8 Ballistic Gun 10 | . 5 13 14 Launcher 10 | . 8 14 3 Naked Turns . | . . . . Heaviest Build 23 | 12 22 23 23 Greatest Support 38 | 20 26 26 38 Greatest Overweight (x) . | . . . . Average Overweight (x) . | . . . . Largest Inventory Capacity 10 | 8 10 10 10 Average Capacity 9 | 6 8 10 10 Most Carried 10 | 4 8 9 10 Average Carried 6 | 1 4 8 8 Final Capacity 10 | 8 10 10 10 Final Carried 9 | 2 8 9 7 Class Distribution -------------------- 95% | Mutant 4% | Scavenger-Mutant Dominant Class ---------------- Mutant | -10/Materials Mutant | -10/Mines Scavenger-Mutant | -10/Subcaves Resources | -11 -10 -10 -10 ----------- Run | Yrd Mat Min Sub Matter Collected 755 | 214 194 304 43 Remotely . | . . . . Salvage Created 755 | . 542 . 213 Parts 54 | . 41 . 13 Haulers Intercepted 2 | . 2 . . Recyclers Shooed 2 | . 2 . . Parts Field Recycled . | . . . . Retrieved Matter . | . . . . Parts Self-Destructed . | . . . . Prevented . | . . . . Kills | -11 -10 -10 -10 ------- Run | Yrd Mat Min Sub Combat Hostiles Destroyed 15 | . 11 . 4 Guns 9 | . 6 . 3 AOE 6 | . 5 . 1 Classes Destroyed 8 | . 7 . 1 Builder 2 | . 2 . . Tunneler 1 | . 1 . . Hauler 2 | . 2 . . Recycler 1 | . 1 . . Watcher 2 | . 2 . . Swarmer 3 | . 3 . . Grunt 8 | . 8 . . Subdweller 4 | . . . 4 Best Kill Streak 5 | . 5 . 4 Combat Bots Only 5 | . 5 . 4 Max Kills in Single Turn 2 | . 2 . 1 Gunslinging . | . . . . Exploded 2 | . 2 . 1 Melee . | . . . . Uniques/NPCs Destroyed . | . . . . Combat | -11 -10 -10 -10 -------- Run | Yrd Mat Min Sub Hostile Shots Fired 90 | . 49 . 41 Missed 23 | . 15 . 8 Damage Taken 1247 | . 411 . 836 Core 261 | . 50 . 211 Absorbed by Shields . | . . . . Core Remaining (%) 100 | 100 . . . Volleys Fired 75 | . 47 . 28 Largest 2 | . 2 . 2 Hottest 98 | . 80 . 98 Shots Fired 121 | . 70 . 51 Gun 108 | . 61 . 47 Cannon . | . . . . Launcher 13 | . 9 . 4 Special . | . . . . Kinetic 46 | . 18 . 28 Thermal 50 | . 31 . 19 Explosive 13 | . 9 . 4 Electromagnetic 12 | . 12 . . Robot Hit Streak 11 | . 7 . 11 Robot Miss Streak 5 | . 5 . 1 Penetration Max . | . . . . Secondary Targets . | . . . . Shots Hit Robots 73 | . 36 . 37 Core Hits 45 | . 33 . 12 Critical Kills 1 | . . . 1 Critical Parts Destroyed . | . . . . Critical Strikes 3 | . 1 . 2 Burn 2 | . 1 . 1 Destroy 1 | . . . 1 Melee Attacks . | . . . . Impact . | . . . . Slashing . | . . . . Piercing . | . . . . Sneak Attacks . | . . . . Combat Hostiles . | . . . . Follow-up Attacks . | . . . . Damage Inflicted 1943 | . 1192 . 751 Guns 1039 | . 441 . 598 Cannons . | . . . . Explosions 904 | . 751 . 153 Melee . | . . . . Ramming . | . . . . Kinetic 514 | . 141 . 373 Thermal 572 | . 347 . 225 Explosive 708 | . 555 . 153 Electromagnetic 149 | . 149 . . Impact . | . . . . Slashing . | . . . . Piercing . | . . . . Highest Corruption . | . . . . Average Corruption . | . . . . Corruption Purged . | . . . . Corruption Blocked . | . . . . Overload Shots . | . . . . Overflow Damage 7 | . 7 . . Projectiles . | . . . . Explosions 7 | . 7 . . Melee . | . . . . Knockbacks . | . . . . Impact . | . . . . Kinetic . | . . . . Secondary . | . . . . Self-Inflicted Damage 34 | . 34 . . Shots 2 | . 2 . . Rammed . | . . . . Targets Rammed 1 | . . 1 . Kicked 1 | . . 1 . Crushed . | . . . . Highest Temperature 111 | . 111 . 36 Average Temperature 27 | . 30 . 13 Received Heat Transfer 264 | . 168 . 96 Siege Activations . | . . . . Robots Corrupted . | . . . . Combat Hostiles . | . . . . Parts Fried . | . . . . Impact Corruptions . | . . . . Robots Melted . | . . . . Combat Hostiles . | . . . . Parts Melted . | . . . . Heat Transferred 1336 | . 818 . 518 Parts Sabotaged . | . . . . Parts Stolen . | . . . . Parts Stripped . | . . . . Power Chain Reactions 3 | . 3 . . Alert | -11 -10 -10 -10 ------- Run | Yrd Mat Min Sub Peak Influence 307 | . 307 85 . Initial 85 | . . 85 . Average 97 | . 147 52 . Maximum Alert Level 1 | . 1 . . Low Security (%) 88 | 100 77 100 . Level 1 11 | . 22 . . Level 2 . | . . . . Level 3 . | . . . . Level 4 . | . . . . Level 5 . | . . . . High Security . | . . . . Max Security . | . . . . Squads Dispatched 2 | . 2 . . Investigation 1 | . 1 . . Extermination . | . . . . Reinforcement 1 | . 1 . . Assault . | . . . . Garrison . | . . . . Intercept . | . . . . Searches Triggered . | . . . . Construction Impeded . | . . . . Haulers Reinforced . | . . . . Active Scanning Responses . | . . . . Cargo Convoy Interrupts . | . . . . Stealth | -11 -10 -10 -10 --------- Run | Yrd Mat Min Sub Distress Signals . | . . . . Communications Jammed . | . . . . Distress Signals . | . . . . Times Spotted 28 | . 19 . 9 Peak Tracking Total 6 | . 6 . 6 Tactical Retreats . | . . . . Traps | -11 -10 -10 -10 ------- Run | Yrd Mat Min Sub Traps Triggered . | . . . . Indirectly . | . . . . Trap Hack Attempts . | . . . . Triggered . | . . . . Disarmed . | . . . . Reprogrammed . | . . . . Reused . | . . . . Traps Extracted . | . . . . Installed . | . . . . Triggered . | . . . . Machines | -11 -10 -10 -10 ---------- Run | Yrd Mat Min Sub Machines Disabled 3 | . 3 . . Max in Single Turn 1 | . 1 . . Machines Repaired . | . . . . Machines Dismantled . | . . . . Machines Sabotaged . | . . . . Overloaded Fab Kills . | . . . . Hacking | -11 -10 -10 -10 --------- Run | Yrd Mat Min Sub Machines Accessed 4 | . 4 . . Terminals 2 | . 2 . . Fabricators . | . . . . Repair Stations . | . . . . Recycling Units 2 | . 2 . . Scanalyzers . | . . . . Garrison Access . | . . . . Total Hacks 10 | . 10 . . Successful 6 | . 6 . . Failed 4 | . 4 . . Catastrophic . | . . . . Database Lockouts . | . . . . Manual . | . . . . Terminals 4 | . 4 . . Fabricators . | . . . . Repair Stations . | . . . . Recycling Units 6 | . 6 . . Scanalyzers . | . . . . Garrison Access . | . . . . Terminal Hacks 2 | . 2 . . Prototype ID Bank 1 | . 1 . . Zone Layout 1 | . 1 . . Fabricator Hacks . | . . . . Repair Station Hacks . | . . . . Recycling Unit Hacks 4 | . 4 . . Process 1 | . 1 . . Report Inventory 2 | . 2 . . Retrieve Components 1 | . 1 . . Scanalyzer . | . . . . Garrison Access Hacks . | . . . . Unauthorized Hacks . | . . . . Terminals . | . . . . Fabricators . | . . . . Repair Stations . | . . . . Recycling Units . | . . . . Scanalyzers . | . . . . Garrison Access . | . . . . Data Cores Recovered . | . . . . Used . | . . . . Hacking Detections 3 | . 3 . . Full Trace Events 2 | . 2 . . Feedback Events . | . . . . Feedback Blocked . | . . . . Robot Schematics Acquired . | . . . . Robots Built . | . . . . Authchips . | . . . . Time . | . . . . Total Robot Build Rating . | . . . . Part Schematics Acquired . | . . . . Parts Built . | . . . . Authchips . | . . . . Time . | . . . . Total Part Build Rating . | . . . . Parts Repaired . | . . . . Time . | . . . . Parts Recycled . | . . . . Recycled Matter 98 | . 98 . . Retrieved Matter . | . . . . Retrieved Components 2 | . 2 . . Parts Scanalyzed . | . . . . Part Schematics Acquired . | . . . . Parts Damaged . | . . . . Bothacking | -11 -10 -10 -10 ------------ Run | Yrd Mat Min Sub Used RIF Installer . | . . . . Robots Hacked . | . . . . Non-combat . | . . . . Combat . | . . . . Robot Hacks Applied . | . . . . Relay Couplers Released . | . . . . Fabnet Peak Effective % . | . . . . Robots Rewired . | . . . . Allies Hacked . | . . . . Hacks Repelled . | . . . . Allies | -11 -10 -10 -10 -------- Run | Yrd Mat Min Sub Total Allies 2 | . . 2 . Largest Group 2 | . . 2 2 Highest-Rated Group 45 | . . 45 45 Highest-Rated Ally 31 | . . 31 31 Total Orders . | . . . . Ally Attacks 1 | . . . 1 Total Damage 22 | . . . 22 Kills . | . . . . Allies Corrupted . | . . . . Allies Melted . | . . . . Intel | -11 -10 -10 -10 ------- Run | Yrd Mat Min Sub Robot Analysis Total . | . . . . Derelict Logs Recovered 1 | . . 1 . Drone Launches . | . . . . Drone Recoveries . | . . . . Exploration | -11 -10 -10 -10 ------------- Run | Yrd Mat Min Sub Turns Passed 1556 | 70 698 640 148 Spaces Moved 1034 | 51 448 484 51 Core 8 | 8 . . . Treads . | . . . . Legs 1026 | 43 448 484 51 Wheels . | . . . . Hover . | . . . . Flight . | . . . . Fastest Speed 50 | 50 120 120 120 Average Speed 119 | 109 120 120 120 Slowest Speed 120 | 120 120 120 120 Overloaded Moves . | . . . . Propulsion Burnouts . | . . . . Robots Hopped . | . . . . Cave-ins Triggered . | . . . . Exploration Rate (%) 42 | 5 78 84 4 Regions Visited 3 Branch Regions 2 Pre-discovered Areas . | . . . . Known Exits Taken 2 | . 1 1 . Unknown Exits Taken 1 | 1 . . . Scrap Searched 2 | . . 2 . Spaces Dug . | . . . . Terrain Destroyed 78 | . 61 . 17 Melee . | . . . . Projectile . | . . . . AOE 78 | . 61 . 17 Terrain Rammed . | . . . . Walls Destroyed . | . . . . Machines Disabled . | . . . . Actions | -11 -10 -10 -10 --------- Run | Yrd Mat Min Sub Total 1244 | 65 542 543 94 Wait 64 | . 9 55 . Move 1031 | 50 447 483 51 Hop . | . . . . Pick Up 34 | 8 19 2 5 Fast Attach . | . . . . Attach 19 | 6 6 1 6 Detach . | . . . . Swap 5 | 1 4 . . Drop 15 | . 10 1 4 Fire 75 | . 47 . 28 Melee . | . . . . Ram . | . . . . Kick 1 | . . 1 . Crush . | . . . . Escape Stasis . | . . . . Rewire . | . . . . Trap . | . . . . Miscellaneous . | . . . . Route ------- -11/Scrapyard -10/Materials (discovered 3 exits: *Mat x2 / *Min) -10/Mines (discovered 2 exits: *Mat / *Sub) -10/Subcaves History --------- Turn | Location | Event 6 | -11/Scrapyard | Discovered new exit (range 16) 71 | -11/Scrapyard | Entered Materials 312 | -10/Materials | Build established: Mutant 406 | -10/Materials | Discovered new exit (range 11) 495 | -10/Materials | Discovered new exit (range 12) 511 | -10/Materials | Identified exit to Mines 535 | -10/Materials | Discovered new exit (range 16) 568 | -10/Materials | Identified exit to Materials 769 | -10/Materials | Entered Mines 971 | -10/Mines | Learned Materials emergency access door positions 981 | -10/Mines | Discovered exit to Materials (range 10) 1388 | -10/Mines | Discovered new exit (range 10) 1400 | -10/Mines | Identified exit to Subcaves 1409 | -10/Mines | Entered Subcaves 1409 | -10/Subcaves | Accompanied by 2 allies 1414 | -10/Subcaves | Led the pair of lost Derelicts to an unsafe place 1475 | -10/Subcaves | Lost 3 allies 1492 | -10/Subcaves | Lost 3 parts (2p1w) 1538 | -10/Subcaves | Ambushed by swarm of Subdwellers 1546 | -10/Subcaves | Core integrity fell below 50% 1555 | -10/Subcaves | Core integrity fell below 20% 1557 | -10/Subcaves | Destroyed by S1-U6Y(R) with Subdweller Machine Gun Last Messages --------------- Subatomizers dissect the Utility Shielding. Acquired Sub. Power Source. Acquired 43 matter. Subatomizers dissect the Utility Shielding. The unstable cave ceiling collapses. JK-TP2(R) destroyed. ZD-C9W(R) suffers critical hit (Burn). ZD-C9W(R) destroyed. Subatomizers dissect the Sub. Optics. NH-731(R) emerges from the Twisted Machinery. 61-8UH(R) emerges from the Twisted Machinery. 72-Y7J(R) emerges from the Twisted Machinery. Imp. Aluminum Leg destroyed. Subatomizers dissect the Sub. Optics. Beamcaster destroyed. UP-C8Q(R) emerges from the Twisted Machinery. S1-U6Y(R) emerges from the Twisted Machinery. T7-23F(R) emerges from the Twisted Machinery. Autogun destroyed. Subatomizers dissect the Sub. Optics. Map ----- +----------------------------------------------------+ | ?????????????????????????????????????????????????? | | ?????????????????????????????????????????????????? | | ?????????????????????????????????????????????????? | | ?????????????????????????????????????????????????? | | ?????????????????????????????????????????????????? | | ?????????????????????????????????????????????????? | | ?????????????????????????????????????????????????? | | ?????????????????????????????????????????????????? | | ?????????????????????????????????????????????????? | | ?????????????????????????????????????????????????? | | ??#####??????????????????????????????????????????? | | ?## ???????????????????????????????????????????? | | ?# ???????????????????????????????????????????? | | ? #???????????????????????????????????????????? | | ?? #???????????????????????????????????????????? | | ?## ????###?????????????????????????????????????? | | ?# !##### ##???????#######??????????????????????? | | ##[&% #" #???????# ???????????????????????? | | #???????? #######?#???????????????? | | = #????????# # # # #???????????????? | | % ##?######## < ????????????????? | | [= ##?## # # # R<[R ??????????????????? | | % ""### !*%#????????????????????? | | = <